fUST/lending_fUST_20260512
["ID","MTS","AMOUNT","RATE_DAILY","PERIOD"]
[422066378,1778544639000,-500.0,0.00010958,2]
[422066381,1778544639000,-500.0,0.00010958,2]
[422066379,1778544639000,-500.0,0.00010958,2]
[422066377,1778544639000,-500.0,0.00010958,2]
[422066385,1778544639000,-563.03,0.00010958,2]
[422066380,1778544639000,-500.0,0.00010958,2]
[422066383,1778544639000,-500.0,0.00010958,2]
[422066384,1778544639000,-500.0,0.00010958,2]
[422066387,1778544639000,-500.0,0.00010958,2]
[422066372,1778544639000,-500.0,0.00010958,2]
[422066420,1778544639000,-500.0,0.00010958,2]
[422066483,1778544639000,-336.7149725,0.00010958,2]
[422066421,1778544639000,-500.0,0.00010958,2]
[422066456,1778544639000,-500.0,0.00010958,2]
[422066455,1778544639000,-500.0,0.00010958,2]
[422066458,1778544639000,-500.0,0.00010958,2]
[422066461,1778544639000,-641.86891284,0.00010958,2]
[422066459,1778544639000,-500.0,0.00010958,2]
[422066460,1778544639000,-1535.13,0.00010958,2]
[422066457,1778544639000,-500.0,0.00010958,2]
[422066467,1778544639000,-500.0,0.00010958,2]
[422066466,1778544639000,-500.0,0.00010958,2]
[422066463,1778544639000,-500.0,0.00010958,2]
[422066464,1778544639000,-500.0,0.00010958,2]
[422066465,1778544639000,-500.0,0.00010958,2]
[422066462,1778544639000,-500.0,0.00010958,2]
[422066450,1778544639000,-500.0,0.00010958,2]
[422066470,1778544639000,-500.0,0.00010958,2]
[422066469,1778544639000,-500.0,0.00010958,2]
[422066471,1778544639000,-500.0,0.00010958,2]
[422066473,1778544639000,-500.0,0.00010958,2]
[422066472,1778544639000,-500.0,0.00010958,2]
[422066474,1778544639000,-500.0,0.00010958,2]
[422066475,1778544639000,-471.4182316,0.00010958,2]
[422066477,1778544639000,-500.0,0.00010958,2]
[422066476,1778544639000,-500.0,0.00010958,2]
[422066478,1778544639000,-500.0,0.00010958,2]
[422066480,1778544639000,-500.0,0.00010958,2]
[422066479,1778544639000,-500.0,0.00010958,2]
[422066422,1778544639000,-500.0,0.00010958,2]
[422066482,1778544639000,-500.0,0.00010958,2]
[422066468,1778544639000,-562.84,0.00010958,2]
[422066451,1778544639000,-500.0,0.00010958,2]
[422066481,1778544639000,-1000.0,0.00010958,2]
[422066453,1778544639000,-500.0,0.00010958,2]
[422066426,1778544639000,-627.92248606,0.00010958,2]
[422066449,1778544639000,-500.0,0.00010958,2]
[422066423,1778544639000,-500.0,0.00010958,2]
[422066425,1778544639000,-500.0,0.00010958,2]
[422066424,1778544639000,-500.0,0.00010958,2]
[422066428,1778544639000,-500.0,0.00010958,2]
[422066427,1778544639000,-515.81,0.00010958,2]
[422066429,1778544639000,-500.0,0.00010958,2]
[422066431,1778544639000,-500.0,0.00010958,2]
[422066430,1778544639000,-619.37,0.00010958,2]
[422066432,1778544639000,-480.38913382,0.00010958,2]
[422066433,1778544639000,-500.0,0.00010958,2]
[422066436,1778544639000,-558.85,0.00010958,2]
[422066438,1778544639000,-589.12,0.00010958,2]
[422066437,1778544639000,-500.0,0.00010958,2]
[422066439,1778544639000,-500.0,0.00010958,2]
[422066452,1778544639000,-500.0,0.00010958,2]
[422066446,1778544639000,-1596.94,0.00010958,2]
[422066448,1778544639000,-500.0,0.00010958,2]
[422066454,1778544639000,-500.0,0.00010958,2]
[422066434,1778544639000,-500.0,0.00010958,2]
[422066447,1778544639000,-821.7,0.00010958,2]
[422066444,1778544639000,-500.0,0.00010958,2]
[422066443,1778544639000,-508.81127091,0.00010958,2]
[422066442,1778544639000,-500.0,0.00010958,2]
[422066441,1778544639000,-500.0,0.00010958,2]
[422066440,1778544639000,-521.83,0.00010958,2]
[422066435,1778544639000,-500.0,0.00010958,2]
[422066445,1778544639000,-500.0,0.00010958,2]
[422066490,1778544640000,-500.0,0.00010958,2]
[422066487,1778544640000,-163.2850275,0.00010958,2]
[422066489,1778544640000,-500.0,0.00010958,2]
[422066491,1778544640000,-500.0,0.00010958,2]
[422066488,1778544640000,-500.0,0.00010958,2]
[422066492,1778544640000,-500.0,0.00010958,2]
[422066499,1778544640000,-432.75716211,0.00010958,2]
[422066493,1778544640000,-500.0,0.00010958,2]
[422066495,1778544640000,-500.0,0.00010958,2]
[422066498,1778544640000,-500.0,0.00010958,2]
[422066496,1778544640000,-500.0,0.00010958,2]
[422066497,1778544640000,-500.0,0.00010958,2]
[422066494,1778544640000,-500.0,0.00010958,2]
[422066524,1778544641000,-500.0,0.00010958,2]
[422066527,1778544641000,-500.0,0.00010958,2]
[422066525,1778544641000,-500.0,0.00010958,2]
[422066529,1778544641000,-985.55,0.00010958,2]
[422066533,1778544641000,-500.0,0.00010958,2]
[422066530,1778544641000,-500.0,0.00010958,2]
[422066532,1778544641000,-500.0,0.00010958,2]
[422066528,1778544641000,-595.94,0.00010958,2]
[422066531,1778544641000,-464.28417047,0.00010958,2]
[422066537,1778544641000,-500.0,0.00010958,2]
[422066534,1778544641000,-500.0,0.00010958,2]
[422066536,1778544641000,-455.96847505,0.00010958,2]
[422066539,1778544641000,-500.0,0.00010958,2]
[422066538,1778544641000,-618.88,0.00010958,2]
[422066540,1778544641000,-1347.14,0.00010958,2]
[422066541,1778544641000,-500.0,0.00010958,2]
[422066542,1778544641000,-500.0,0.00010958,2]
[422066543,1778544641000,-500.0,0.00010958,2]
[422066526,1778544641000,-3336.79,0.00010958,2]
[422066535,1778544641000,-713.73,0.00010958,2]
[422066523,1778544641000,-500.0,0.00010958,2]
[422066502,1778544641000,-500.0,0.00010958,2]
[422066521,1778544641000,-500.0,0.00010958,2]
[422066545,1778544641000,-500.0,0.00010958,2]
[422066504,1778544641000,-500.0,0.00010958,2]
[422066500,1778544641000,-500.0,0.00010958,2]
[422066503,1778544641000,-500.0,0.00010958,2]
[422066501,1778544641000,-703.38,0.00010958,2]
[422066506,1778544641000,-500.0,0.00010958,2]
[422066505,1778544641000,-500.0,0.00010958,2]
[422066507,1778544641000,-500.0,0.00010958,2]
[422066508,1778544641000,-500.0,0.00010958,2]
[422066509,1778544641000,-521.2,0.00010958,2]
[422066520,1778544641000,-3684.32,0.00010958,2]
[422066516,1778544641000,-500.0,0.00010958,2]
[422066513,1778544641000,-500.0,0.00010958,2]
[422066518,1778544641000,-314.9660582,0.00010958,2]
[422066510,1778544641000,-564.4612821,0.00010958,2]
[422066511,1778544641000,-500.0,0.00010958,2]
[422066519,1778544641000,-500.0,0.00010958,2]
[422066515,1778544641000,-500.0,0.00010958,2]
[422066517,1778544641000,-500.0,0.00010958,2]
[422066522,1778544641000,-500.0,0.00010958,2]
[422066544,1778544641000,-500.0,0.00010958,2]
[422066551,1778544641000,-284.95622581,0.00010958,2]
[422066547,1778544641000,-549.43294067,0.00010958,2]
[422066573,1778544641000,-3242.98,0.00010958,2]
[422066570,1778544641000,-500.0,0.00010958,2]
[422066571,1778544641000,-500.0,0.00010958,2]
[422066566,1778544641000,-2296.46,0.00010958,2]
[422066575,1778544641000,-500.0,0.00010958,2]
[422066576,1778544641000,-500.0,0.00010958,2]
[422066578,1778544641000,-665.06,0.00010958,2]
[422066577,1778544641000,-500.0,0.00010958,2]
[422066588,1778544641000,-500.0,0.00010958,2]
[422066579,1778544641000,-500.0,0.00010958,2]
[422066582,1778544641000,-500.0,0.00010958,2]
[422066585,1778544641000,-500.0,0.00010958,2]
[422066584,1778544641000,-500.0,0.00010958,2]
[422066580,1778544641000,-500.0,0.00010958,2]
[422066581,1778544641000,-500.0,0.00010958,2]
[422066583,1778544641000,-500.0,0.00010958,2]
[422066587,1778544641000,-680.21,0.00010958,2]
[422066590,1778544641000,-8121.00769712,0.00010958,2]
[422066546,1778544641000,-942.31,0.00010958,2]
[422066565,1778544641000,-500.0,0.00010958,2]
[422066567,1778544641000,-2477.28,0.00010958,2]
[422066586,1778544641000,-500.0,0.00010958,2]
[422066569,1778544641000,-500.0,0.00010958,2]
[422066549,1778544641000,-500.0,0.00010958,2]
[422066550,1778544641000,-1392.87,0.00010958,2]
[422066560,1778544641000,-2336.38,0.00010958,2]
[422066589,1778544641000,-500.0,0.00010958,2]
[422066552,1778544641000,-500.0,0.00010958,2]
[422066548,1778544641000,-1261.18,0.00010958,2]
[422066553,1778544641000,-845.32,0.00010958,2]
[422066555,1778544641000,-500.0,0.00010958,2]
[422066557,1778544641000,-1011.54,0.00010958,2]
[422066558,1778544641000,-581.91,0.00010958,2]
[422066559,1778544641000,-3712.29,0.00010958,2]
[422066554,1778544641000,-500.0,0.00010958,2]
[422066562,1778544641000,-500.0,0.00010958,2]
[422066561,1778544641000,-500.0,0.00010958,2]
[422066564,1778544641000,-500.0,0.00010958,2]
[422066563,1778544641000,-500.0,0.00010958,2]
[422066568,1778544641000,-809.16,0.00010958,2]
[422066572,1778544641000,-500.0,0.00010958,2]
[422066556,1778544641000,-500.0,0.00010958,2]
[422066574,1778544641000,-500.0,0.00010958,2]
[422066601,1778544648000,-1855.87117914,0.00010958,2]
[422066619,1778544824000,300.0,9.267e-05,23]
[422066661,1778545832000,-913.56679958,9e-05,2]
[422066657,1778545832000,-500.0,8.352e-05,2]
[422066658,1778545832000,-323.80331179,8.393e-05,2]
[422066666,1778545832000,-2860.4431764,9e-05,2]
[422066667,1778545832000,-300.0,9.999e-05,2]
[422066670,1778545832000,-1650.63397256,0.0001,2]
[422066669,1778545832000,-152.0,0.0001,7]
[422066662,1778545832000,-4163.99002402,9e-05,2]
[422066703,1778545838000,-155.975,0.00010151,2]
[422066702,1778545838000,-413.57830902,0.0001,2]
[422066701,1778545838000,-5000.0,0.0001,2]
[422066704,1778545838000,-306.44649839,0.00010254,2]
[422066700,1778545838000,-8349.36602744,0.0001,2]
[422066768,1778545841000,-536.43320746,0.00010254,2]
[422067104,1778545843000,-5284.15326649,0.00010254,2]
[422067106,1778545843000,-5029.77788828,0.00010254,2]
[422067102,1778545843000,-26064.12341471,0.00010254,2]
[422067108,1778545843000,-1591.27977177,0.00010254,2]
[422067110,1778545843000,-1433.7859529,0.00010254,2]
[422067115,1778545843000,-6264.6768635,0.00010255,2]
[422067112,1778545843000,-7111.41073133,0.00010255,2]
[422067145,1778545844000,-500.0,0.00010255,2]
[422067147,1778545844000,-142.82512261,0.00010255,2]
[422067149,1778545844000,-434.05952329,0.00010255,2]
[422067150,1778545844000,-500.0,0.00010255,2]
[422067152,1778545844000,-500.0,0.00010255,2]
[422067141,1778545844000,-3928.60947472,0.00010255,2]
[422067143,1778545844000,-3540.4083052,0.00010255,2]
[422067154,1778545844000,-500.0,0.00010255,2]
[422067156,1778545844000,-500.0,0.00010255,2]
[422067174,1778545844000,-376.74321826,0.00010255,2]
[422067158,1778545844000,-500.0,0.00010255,2]
[422067164,1778545844000,-500.0,0.00010255,2]
[422067159,1778545844000,-500.0,0.00010255,2]
[422067172,1778545844000,-500.0,0.00010255,2]
[422067168,1778545844000,-500.0,0.00010255,2]
[422067162,1778545844000,-500.0,0.00010255,2]
[422067170,1778545844000,-628.70353246,0.00010255,2]
[422067166,1778545844000,-500.0,0.00010255,2]
[422067176,1778545844000,-101.43756051,0.00010256,2]
[422067505,1778545847000,-1011.56306623,0.00010256,2]
[422067503,1778545847000,-55811.24928267,0.00010256,2]
[422067508,1778545847000,-9566.40173126,0.00010256,2]
[422067938,1778546254000,11683.42410688,0.0001,120]
[422067968,1778547032000,-1144.54257401,0.0001,2]
[422067966,1778547032000,-160.5,0.0001,2]
[422067960,1778547032000,-35.58281517,0.0001,2]
[422067964,1778547032000,-124.91718483,0.0001,2]
[422067957,1778547032000,-300.0,9.999e-05,2]
[422067955,1778547032000,-1590.20861495,9.89e-05,2]
[422067953,1778547032000,-397.95010384,9.89e-05,2]
[422067969,1778547032000,-1402.27537471,0.0001,2]
[422067959,1778547032000,-325.26875085,9.999e-05,2]
[422067971,1778547032000,-3597.72462529,0.0001,2]
[422067979,1778547032000,-500.0,0.00010055,2]
[422067975,1778547032000,-500.0,0.00010055,2]
[422067991,1778547032000,-38482.07194481,0.00010056,2]
[422067973,1778547032000,-43346.52874776,0.00010054,2]
[422067987,1778547032000,-264.08257981,0.00010055,2]
[422067989,1778547032000,-500.0,0.00010055,2]
[422067993,1778547032000,-377.42494485,0.00010056,2]
[422067995,1778547032000,-4240.55941701,0.00010056,2]
[422067986,1778547032000,-382.04156934,0.00010055,2]
[422067982,1778547032000,-500.0,0.00010055,2]
[422067977,1778547032000,-500.0,0.00010055,2]
[422067984,1778547032000,-503.81925213,0.00010055,2]
[422068545,1778547042000,-500.0,0.00010958,2]
[422068527,1778547042000,-160.5,0.000107,2]
[422068540,1778547042000,-3318.38854714,0.00010958,2]
[422068542,1778547042000,-500.0,0.00010958,2]
[422068541,1778547042000,-12099.92849,0.00010958,2]
[422068544,1778547042000,-500.0,0.00010958,2]
[422068543,1778547042000,-500.0,0.00010958,2]
[422068546,1778547042000,-500.0,0.00010958,2]
[422068555,1778547042000,-593.09,0.00010958,2]
[422068548,1778547042000,-500.0,0.00010958,2]
[422068549,1778547042000,-674.08,0.00010958,2]
[422068550,1778547042000,-500.0,0.00010958,2]
[422068551,1778547042000,-500.0,0.00010958,2]
[422068553,1778547042000,-500.0,0.00010958,2]
[422068552,1778547042000,-500.0,0.00010958,2]
[422068556,1778547042000,-500.0,0.00010958,2]
[422068554,1778547042000,-500.0,0.00010958,2]
[422068547,1778547042000,-500.0,0.00010958,2]
[422068537,1778547042000,-369.07891749,0.00010958,2]
[422068511,1778547042000,-6100.04329361,0.00010056,2]
[422068531,1778547042000,-1536.4406867,0.00010858,2]
[422068508,1778547042000,-5000.0,0.0001,2]
[422068510,1778547042000,-2028.97951315,0.00010056,2]
[422068509,1778547042000,-41588.51305982,0.00010056,2]
[422068512,1778547042000,-421823.94967443,0.00010056,2]
[422068513,1778547042000,-1536.4406867,0.00010147,2]
[422068517,1778547042000,-160.5,0.000105,2]
[422068515,1778547042000,-1536.4406867,0.00010325,2]
[422068514,1778547042000,-2662.6898419,0.00010247,4]
[422068533,1778547042000,-155.0,0.00010957,2]
[422068516,1778547042000,-160.5,0.000105,2]
[422068521,1778547042000,-161.621689,0.000107,2]
[422068519,1778547042000,-167.42002379,0.00010539,2]
[422068522,1778547042000,-160.0,0.000107,2]
[422068520,1778547042000,-1536.4406867,0.0001068,2]
[422068525,1778547042000,-160.5,0.000107,2]
[422068524,1778547042000,-160.0,0.000107,2]
[422068529,1778547042000,-169.7,0.00010813,2]
[422068539,1778547042000,-1476.31566995,0.00010958,2]
[422068518,1778547042000,-1536.4406867,0.00010503,2]
[422068557,1778547042000,-500.0,0.00010958,2]
[422068535,1778547042000,-1983.4184,0.00010958,2]
[422068563,1778547042000,-500.0,0.00010958,2]
[422068604,1778547042000,-500.0,0.00010958,2]
[422068606,1778547042000,-591.25,0.00010958,2]
[422068611,1778547042000,-500.0,0.00010958,2]
[422068608,1778547042000,-500.0,0.00010958,2]
[422068609,1778547042000,-500.0,0.00010958,2]
[422068613,1778547042000,-500.0,0.00010958,2]
[422068624,1778547042000,-1495.84,0.00010958,2]
[422068615,1778547042000,-500.0,0.00010958,2]
[422068602,1778547042000,-500.0,0.00010958,2]
[422068620,1778547042000,-500.0,0.00010958,2]
[422068622,1778547042000,-500.0,0.00010958,2]
[422068618,1778547042000,-500.0,0.00010958,2]
[422068627,1778547042000,-500.0,0.00010958,2]
[422068629,1778547042000,-500.0,0.00010958,2]
[422068634,1778547042000,-500.0,0.00010958,2]
[422068632,1778547042000,-513.7,0.00010958,2]
[422068630,1778547042000,-500.0,0.00010958,2]
[422068558,1778547042000,-500.0,0.00010958,2]
[422068617,1778547042000,-500.0,0.00010958,2]
[422068600,1778547042000,-500.0,0.00010958,2]
[422068626,1778547042000,-390.0,0.00010958,2]
[422068594,1778547042000,-500.0,0.00010958,2]
[422068560,1778547042000,-500.0,0.00010958,2]
[422068598,1778547042000,-500.0,0.00010958,2]
[422068559,1778547042000,-500.0,0.00010958,2]
[422068561,1778547042000,-500.0,0.00010958,2]
[422068569,1778547042000,-500.0,0.00010958,2]
[422068571,1778547042000,-500.0,0.00010958,2]
[422068575,1778547042000,-500.0,0.00010958,2]
[422068573,1778547042000,-500.0,0.00010958,2]
[422068565,1778547042000,-500.0,0.00010958,2]
[422068567,1778547042000,-651.87,0.00010958,2]
[422068588,1778547042000,-500.0,0.00010958,2]
[422068579,1778547042000,-609.2,0.00010958,2]
[422068581,1778547042000,-500.0,0.00010958,2]
[422068583,1778547042000,-500.0,0.00010958,2]
[422068585,1778547042000,-500.0,0.00010958,2]
[422068586,1778547042000,-500.0,0.00010958,2]
[422068590,1778547042000,-500.0,0.00010958,2]
[422068577,1778547042000,-500.0,0.00010958,2]
[422068596,1778547042000,-500.0,0.00010958,2]
[422068592,1778547042000,-500.0,0.00010958,2]
[422068717,1778547043000,-500.0,0.00010958,2]
[422068719,1778547043000,-500.0,0.00010958,2]
[422068715,1778547043000,-500.0,0.00010958,2]
[422068713,1778547043000,-500.0,0.00010958,2]
[422068711,1778547043000,-500.0,0.00010958,2]
[422068699,1778547043000,-1471.17,0.00010958,2]
[422068708,1778547043000,-500.0,0.00010958,2]
[422068709,1778547043000,-500.0,0.00010958,2]
[422068705,1778547043000,-500.0,0.00010958,2]
[422068702,1778547043000,-500.0,0.00010958,2]
[422068723,1778547043000,-500.0,0.00010958,2]
[422068697,1778547043000,-500.0,0.00010958,2]
[422068721,1778547043000,-500.0,0.00010958,2]
[422068725,1778547043000,-384.81382045,0.00010958,2]
[422068739,1778547043000,-500.0,0.00010958,2]
[422068732,1778547043000,-500.0,0.00010958,2]
[422068727,1778547043000,-3530.81,0.00010958,2]
[422068730,1778547043000,-500.0,0.00010958,2]
[422068734,1778547043000,-3197.75,0.00010958,2]
[422068736,1778547043000,-500.0,0.00010958,2]
[422068746,1778547043000,-500.0,0.00010958,2]
[422068744,1778547043000,-683.99,0.00010958,2]
[422068742,1778547043000,-500.0,0.00010958,2]
[422068748,1778547043000,-1291.01,0.00010958,2]
[422068750,1778547043000,-530.15,0.00010958,2]
[422068760,1778547043000,-571.11,0.00010958,2]
[422068762,1778547043000,-337.45,0.00010958,2]
[422068695,1778547043000,-500.0,0.00010958,2]
[422068728,1778547043000,-500.0,0.00010958,2]
[422068704,1778547043000,-500.0,0.00010958,2]
[422068657,1778547043000,-500.0,0.00010958,2]
[422068693,1778547043000,-1530.4,0.00010958,2]
[422068638,1778547043000,-500.0,0.00010958,2]
[422068639,1778547043000,-500.0,0.00010958,2]
[422068636,1778547043000,-548.38,0.00010958,2]
[422068647,1778547043000,-500.0,0.00010958,2]
[422068641,1778547043000,-713.57,0.00010958,2]
[422068643,1778547043000,-557.19,0.00010958,2]
[422068645,1778547043000,-500.0,0.00010958,2]
[422068649,1778547043000,-500.0,0.00010958,2]
[422068652,1778547043000,-370.29041738,0.00010958,2]
[422068651,1778547043000,-500.0,0.00010958,2]
[422068757,1778547043000,-500.0,0.00010958,2]
[422068654,1778547043000,-1526.57,0.00010958,2]
[422068656,1778547043000,-534.31,0.00010958,2]
[422068659,1778547043000,-500.0,0.00010958,2]
[422068661,1778547043000,-593.57,0.00010958,2]
[422068669,1778547043000,-500.0,0.00010958,2]
[422068664,1778547043000,-500.0,0.00010958,2]
[422068668,1778547043000,-500.0,0.00010958,2]
[422068666,1778547043000,-500.0,0.00010958,2]
[422068673,1778547043000,-266.18012458,0.00010958,2]
[422068671,1778547043000,-500.0,0.00010958,2]
[422068679,1778547043000,-500.0,0.00010958,2]
[422068677,1778547043000,-500.0,0.00010958,2]
[422068675,1778547043000,-500.0,0.00010958,2]
[422068681,1778547043000,-787.46,0.00010958,2]
[422068683,1778547043000,-564.58,0.00010958,2]
[422068685,1778547043000,-500.08,0.00010958,2]
[422068689,1778547043000,-500.0,0.00010958,2]
[422068688,1778547043000,-500.84,0.00010958,2]
[422068691,1778547043000,-467.87004519,0.00010958,2]
[422068754,1778547043000,-500.0,0.00010958,2]
[422068789,1778547043000,-557.66,0.00010958,2]
[422068765,1778547043000,-500.0,0.00010958,2]
[422068832,1778547043000,-500.0,0.00010958,2]
[422068835,1778547043000,-500.0,0.00010958,2]
[422068839,1778547043000,-500.0,0.00010958,2]
[422068853,1778547043000,-16711.42,0.00010958,2]
[422068847,1778547043000,-567.01,0.00010958,2]
[422068845,1778547043000,-500.0,0.00010958,2]
[422068843,1778547043000,-500.0,0.00010958,2]
[422068855,1778547043000,-688.42,0.00010958,2]
[422068849,1778547043000,-500.0,0.00010958,2]
[422068752,1778547043000,-944.48,0.00010958,2]
[422068857,1778547043000,-500.0,0.00010958,2]
[422068867,1778547043000,-500.0,0.00010958,2]
[422068859,1778547043000,-593.62,0.00010958,2]
[422068837,1778547043000,-500.0,0.00010958,2]
[422068861,1778547043000,-3117.48,0.00010958,2]
[422068863,1778547043000,-500.0,0.00010958,2]
[422068868,1778547043000,-702.12,0.00010958,2]
[422068870,1778547043000,-2618.93,0.00010958,2]
[422068872,1778547043000,-716.01,0.00010958,2]
[422068874,1778547043000,-858.15,0.00010958,2]
[422068876,1778547043000,-500.0,0.00010958,2]
[422068880,1778547043000,-1228.08,0.00010958,2]
[422068878,1778547043000,-877.96,0.00010958,2]
[422068882,1778547043000,-500.0,0.00010958,2]
[422068887,1778547043000,-500.0,0.00010958,2]
[422068886,1778547043000,-539.39,0.00010958,2]
[422068884,1778547043000,-1476.52,0.00010958,2]
[422068889,1778547043000,-1282.96,0.00010958,2]
[422068865,1778547043000,-500.0,0.00010958,2]
[422068841,1778547043000,-500.0,0.00010958,2]
[422068851,1778547043000,-500.0,0.00010958,2]
[422068817,1778547043000,-637.35,0.00010958,2]
[422068769,1778547043000,-903.05,0.00010958,2]
[422068771,1778547043000,-810.1,0.00010958,2]
[422068830,1778547043000,-1742.23,0.00010958,2]
[422068767,1778547043000,-1334.83,0.00010958,2]
[422068773,1778547043000,-500.0,0.00010958,2]
[422068780,1778547043000,-500.0,0.00010958,2]
[422068778,1778547043000,-500.0,0.00010958,2]
[422068782,1778547043000,-500.0,0.00010958,2]
[422068786,1778547043000,-1229.46,0.00010958,2]
[422068784,1778547043000,-2239.03,0.00010958,2]
[422068793,1778547043000,-794.38,0.00010958,2]
[422068791,1778547043000,-500.0,0.00010958,2]
[422068802,1778547043000,-500.0,0.00010958,2]
[422068795,1778547043000,-990.22,0.00010958,2]
[422068775,1778547043000,-159.55,0.00010958,2]
[422068798,1778547043000,-500.0,0.00010958,2]
[422068796,1778547043000,-2200.77,0.00010958,2]
[422068824,1778547043000,-500.0,0.00010958,2]
[422068820,1778547043000,-500.0,0.00010958,2]
[422068828,1778547043000,-500.0,0.00010958,2]
[422068826,1778547043000,-500.0,0.00010958,2]
[422068819,1778547043000,-2384.13,0.00010958,2]
[422068822,1778547043000,-500.0,0.00010958,2]
[422068813,1778547043000,-500.0,0.00010958,2]
[422068808,1778547043000,-500.0,0.00010958,2]
[422068815,1778547043000,-3107.85,0.00010958,2]
[422068806,1778547043000,-500.0,0.00010958,2]
[422068805,1778547043000,-3612.38,0.00010958,2]
[422068811,1778547043000,-524.74,0.00010958,2]
[422068800,1778547043000,-535.57,0.00010958,2]
[422068932,1778547044000,-179.6,0.00011041,2]
[422068920,1778547044000,-15000.0,0.00010959,2]
[422068922,1778547044000,-151.0,0.00010959,2]
[422068924,1778547044000,-151.0,0.00010959,2]
[422068930,1778547044000,-151.0,0.00011,2]
[422068928,1778547044000,-151.0,0.00011,2]
[422068934,1778547044000,-647.0,0.00011075,2]
[422068936,1778547044000,-1412.0,0.00011075,2]
[422068918,1778547044000,-500.0,0.00010958,2]
[422068926,1778547044000,-407.0,0.00010999,2]
[422068916,1778547044000,-1507.8,0.00010958,2]
[422068900,1778547044000,-1941.14,0.00010958,2]
[422068893,1778547044000,-500.0,0.00010958,2]
[422068908,1778547044000,-500.0,0.00010958,2]
[422068910,1778547044000,-500.0,0.00010958,2]
[422068904,1778547044000,-2468.29,0.00010958,2]
[422068902,1778547044000,-500.0,0.00010958,2]
[422068940,1778547044000,-151.0,0.000111,2]
[422068906,1778547044000,-500.0,0.00010958,2]
[422068897,1778547044000,-500.0,0.00010958,2]
[422068895,1778547044000,-500.0,0.00010958,2]
[422068891,1778547044000,-500.0,0.00010958,2]
[422068914,1778547044000,-604.72,0.00010958,2]
[422068938,1778547044000,-2201.0,0.00011075,2]
[422068898,1778547044000,-500.0,0.00010958,2]
[422068942,1778547044000,-151.0,0.000111,2]
[422068946,1778547044000,-151.0,0.000111,2]
[422069009,1778547044000,-1207.85805343,0.00011232,2]
[422068982,1778547044000,-151.0,0.000112,2]
[422068976,1778547044000,-300.0,0.00011176,2]
[422068980,1778547044000,-151.0,0.000112,2]
[422068978,1778547044000,-600.0,0.00011176,2]
[422068987,1778547044000,-3388.54333442,0.00011232,2]
[422068986,1778547044000,-1850.608,0.00011232,2]
[422068984,1778547044000,-151.0,0.000112,2]
[422068973,1778547044000,-300.0,0.00011176,2]
[422068966,1778547044000,-300.0,0.00011176,2]
[422068963,1778547044000,-300.0,0.00011176,2]
[422068912,1778547044000,-500.0,0.00010958,2]
[422068971,1778547044000,-300.0,0.00011176,2]
[422068944,1778547044000,-151.0,0.000111,2]
[422068970,1778547044000,-300.0,0.00011176,2]
[422068947,1778547044000,-300.0,0.00011176,2]
[422068953,1778547044000,-300.0,0.00011176,2]